bitfinex/quotes_BTCUSD_20250904
["timestamp","ask_amount","ask_price","bid_price","bid_amount"]
[1756972603002,0.4611759,110670.0,110660.0,0.27583976]
[1756972604103,0.4611759,110670.0,110660.0,0.27791976]
[1756972610897,0.4611759,110670.0,110660.0,0.42863976]
[1756972633323,0.03726781,110670.0,110660.0,0.42863976]
[1756972633526,0.03726781,110670.0,110660.0,0.85254785]
[1756972633733,4.709e-05,110670.0,110660.0,1.30361722]
[1756972633989,4.709e-05,110670.0,110660.0,1.32455604]
[1756972634966,4.709e-05,110670.0,110660.0,1.36155905]
[1756972635388,4.709e-05,110670.0,110660.0,0.93765096]
[1756972635819,4.709e-05,110670.0,110660.0,0.93965096]
[1756972636037,4.709e-05,110670.0,110660.0,0.94165096]
[1756972641470,4.709e-05,110670.0,110660.0,0.51774287]
[1756972641678,4.709e-05,110670.0,110660.0,0.94165096]
[1756972642722,4.709e-05,110670.0,110660.0,0.90464795]
[1756972643043,4.709e-05,110670.0,110660.0,0.33001986]
[1756972643250,4.709e-05,110670.0,110660.0,0.48065986]
[1756972643465,4.709e-05,110670.0,110660.0,0.90456795]
[1756972645532,4.709e-05,110670.0,110660.0,0.48065986]
[1756972648666,4.709e-05,110670.0,110660.0,0.48061986]
[1756972649095,4.709e-05,110670.0,110660.0,0.33001986]
[1756972649285,4.709e-05,110670.0,110660.0,0.48061986]
[1756972650059,4.709e-05,110670.0,110660.0,0.33001986]
[1756972650287,4.709e-05,110670.0,110660.0,0.48061986]
[1756972650859,4.709e-05,110670.0,110660.0,0.33001986]
[1756972650994,4.709e-05,110670.0,110660.0,0.48061986]
[1756972663175,3.87e-06,110670.0,110660.0,0.48061986]
[1756972664940,3.87e-06,110670.0,110660.0,0.33001986]
[1756972665130,3.87e-06,110670.0,110660.0,0.48057986]
[1756972672068,3.87e-06,110670.0,110660.0,1.04557077]
[1756972672272,3.87e-06,110670.0,110660.0,0.48057986]
[1756972672707,3.87e-06,110670.0,110660.0,0.47857986]
[1756972672918,3.87e-06,110670.0,110660.0,0.47657986]
[1756972673112,3.87e-06,110670.0,110660.0,0.48057986]
[1756972673337,0.60115748,110690.0,110680.0,0.18070112]
[1756972673541,0.60120457,110690.0,110680.0,0.42317711]
[1756972675220,0.00024709,110690.0,110680.0,0.42845711]
[1756972675894,0.00024709,110690.0,110680.0,0.45561436]
[1756972685135,0.00024709,110690.0,110680.0,0.30505436]
[1756972685448,0.00024709,110690.0,110680.0,0.45557436]
[1756972689608,0.00024709,110690.0,110680.0,0.49560924]
[1756972696934,0.00024709,110690.0,110680.0,0.34508924]
[1756972697138,0.00024709,110690.0,110680.0,0.34302924]
[1756972697349,0.00024709,110690.0,110680.0,0.49350924]
[1756972697753,0.00024709,110690.0,110680.0,0.46635199]
[1756972698103,0.00024709,110690.0,110680.0,0.46846199]
[1756972698742,0.00024709,110690.0,110680.0,0.48940081]
[1756972698954,0.00024709,110690.0,110680.0,1.05439172]
[1756972699161,0.00024709,110690.0,110680.0,1.08154631]
[1756972700100,0.00024709,110690.0,110680.0,1.11210453]
[1756972701747,0.00024709,110690.0,110680.0,0.5165554]
[1756972701959,0.00024709,110690.0,110680.0,1.08154631]
[1756972702638,0.00024709,110690.0,110680.0,0.93106631]
[1756972702871,0.00024709,110690.0,110680.0,1.08154631]
[1756972705593,0.00024709,110690.0,110680.0,0.93106631]
[1756972705846,0.00024709,110690.0,110680.0,1.08154631]
[1756972707468,0.00024709,110690.0,110680.0,0.94014082]
[1756972714532,0.00024709,110690.0,110680.0,0.5165554]
[1756972714738,0.00024709,110690.0,110680.0,0.90010594]
[1756972720580,0.00024709,110690.0,110680.0,0.47652052]
[1756972720873,0.00024709,110690.0,110680.0,0.90010594]
[1756972722940,0.00024709,110690.0,110680.0,1.32369136]
[1756972724016,0.00024709,110690.0,110680.0,0.90010594]
[1756972726106,0.00024709,110690.0,110680.0,0.90110594]
[1756972726323,0.00024709,110690.0,110680.0,0.90210594]
[1756972728396,2.169e-05,110690.0,110680.0,0.3017717]
[1756972728608,0.42360711,110690.0,110680.0,0.42501711]
[1756972732892,0.42360711,110690.0,110680.0,0.42798711]
[1756972735064,2.169e-05,110690.0,110680.0,0.42798711]
[1756972735375,0.42360711,110690.0,110680.0,0.42798711]
[1756972737573,0.42360711,110690.0,110680.0,0.43003711]
[1756972739475,2.169e-05,110690.0,110680.0,0.43003711]
[1756972739694,0.42360711,110690.0,110680.0,0.43003711]
[1756972740501,0.42360711,110690.0,110680.0,0.27758711]
[1756972740705,0.42360711,110690.0,110680.0,0.42798711]
[1756972740914,0.6042919,110690.0,110680.0,0.27461711]
[1756972741125,0.84719253,110690.0,110680.0,0.42501711]
[1756972741327,1.02787732,110690.0,110680.0,0.42501711]
[1756972741536,1.17827732,110690.0,110680.0,0.09391599]
[1756972744534,1.17827732,110690.0,110680.0,0.09291599]
[1756972744745,1.17827732,110690.0,110680.0,0.09191599]
[1756972747969,0.18071744,110670.0,110660.0,0.18073248]
[1756972748175,1.0278957,110670.0,110660.0,0.09191599]
[1756972748377,1.1782957,110670.0,110660.0,0.09191599]
[1756972749996,0.18074019,110660.0,110640.0,0.34315476]
[1756972750210,0.18074019,110660.0,110650.0,0.09191599]
[1756972750211,0.60432561,110660.0,110650.0,0.09191599]
[1756972751378,1.02791103,110660.0,110650.0,0.09391599]
[1756972751813,1.02791103,110660.0,110650.0,0.2746661]
[1756972752246,1.02791103,110660.0,110650.0,0.2766661]
[1756972752636,1.02791103,110660.0,110650.0,0.09591599]
[1756972753198,1.02791103,110660.0,110650.0,0.09191599]
[1756972753883,1.02791103,110660.0,110650.0,0.09291599]
[1756972754581,1.02791103,110660.0,110650.0,0.09391599]
[1756972758429,1.0550787,110660.0,110650.0,0.09391599]
[1756972759516,1.0550787,110660.0,110650.0,0.2746661]
[1756972759726,1.2055187,110660.0,110650.0,0.2776161]
[1756972760106,1.2055187,110660.0,110650.0,0.09686599]
[1756972762992,1.2055187,110660.0,110650.0,0.2776161]
[1756972763668,1.2055187,110660.0,110650.0,0.09686599]
[1756972767858,0.35834786,110660.0,110650.0,0.2795761]
[1756972767986,1.2055187,110660.0,110650.0,0.2795761]
[1756972769499,0.92366567,110660.0,110650.0,0.2795761]
[1756972774043,0.92366567,110660.0,110650.0,0.09882599]
[1756972774463,0.92366567,110660.0,110650.0,0.09686599]
[1756972775333,0.92366567,110660.0,110650.0,0.09391599]
[1756972778449,0.94317416,110660.0,110650.0,0.09391599]
[1756972778669,0.94317416,110660.0,110650.0,0.09291599]
[1756972779342,0.94317416,110660.0,110650.0,0.09191599]
[1756972780019,0.18075011,110650.0,110640.0,0.18371644]
[1756972780206,0.89650792,110650.0,110640.0,0.27772243]
[1756972781194,0.89650792,110650.0,110640.0,0.27876952]
[1756972781424,0.89650792,110650.0,110640.0,0.27976952]
[1756972781620,0.33119011,110650.0,110640.0,0.27976952]
[1756972781868,0.89650792,110650.0,110640.0,0.27976952]
[1756972782669,0.89650792,110650.0,110640.0,0.09900308]
[1756972783089,0.89650792,110650.0,110640.0,0.09691308]
[1756972783508,0.92367756,110650.0,110640.0,0.09691308]
[1756972787110,0.92367756,110650.0,110640.0,0.09900308]
[1756972789169,0.92367756,110650.0,110640.0,0.27976952]
[1756972790920,0.92367756,110650.0,110640.0,0.09900308]
[1756972792109,0.35835975,110650.0,110640.0,0.09900308]
[1756972792332,0.92367756,110650.0,110640.0,0.09900308]
[1756972797610,0.92367756,110650.0,110640.0,0.09691308]
[1756972797793,0.92367756,110650.0,110640.0,0.09396308]
[1756972798188,0.92367756,110650.0,110640.0,0.09699308]
[1756972798590,0.92367756,110650.0,110640.0,0.09599308]
[1756972798806,0.92367756,110650.0,110640.0,0.09499308]
[1756972800618,0.33119011,110650.0,110640.0,0.09499308]
[1756972800869,0.89650792,110650.0,110640.0,0.09196308]
[1756972801263,0.89654792,110650.0,110640.0,0.09196308]
[1756972801482,0.18075011,110650.0,110640.0,0.10449239]
[1756972801690,0.89654792,110650.0,110640.0,0.10449239]
[1756972801911,0.33123011,110650.0,110640.0,0.09196308]
[1756972802126,0.92371813,110650.0,110640.0,4.709e-05]
[1756972802526,1.33319813,110650.0,110640.0,4.709e-05]
[1756972803968,1.33347813,110650.0,110640.0,4.709e-05]
[1756972805183,1.33547813,110650.0,110640.0,4.709e-05]
[1756972806454,1.33647813,110650.0,110640.0,4.709e-05]
[1756972806628,1.42839412,110650.0,110640.0,4.709e-05]
[1756972806834,1.33547813,110650.0,110640.0,4.709e-05]
[1756972806997,1.33647813,110650.0,110640.0,4.709e-05]
[1756972807199,1.30930792,110650.0,110640.0,4.709e-05]
[1756972808883,1.3490279,110650.0,110640.0,4.709e-05]
[1756972809109,2.03252302,110650.0,110640.0,4.709e-05]
[1756972809541,1.46720521,110650.0,110640.0,4.709e-05]
[1756972810181,2.03252302,110650.0,110640.0,4.709e-05]
[1756972811027,2.14391086,110650.0,110640.0,4.709e-05]
[1756972812672,2.16704814,110650.0,110640.0,4.709e-05]
[1756972813085,2.14491086,110650.0,110640.0,4.709e-05]
[1756972813744,2.14491086,110650.0,110620.0,0.00308234]
[1756972813745,0.52078278,110630.0,110620.0,0.00308234]
[1756972813930,1.30709693,110630.0,110620.0,0.00321008]
[1756972814165,1.30709693,110630.0,110620.0,0.00522008]
[1756972814381,1.37657693,110630.0,110620.0,0.00522008]
[1756972815414,1.37661693,110630.0,110620.0,0.00522008]
[1756972815564,1.37661693,110630.0,110620.0,0.00321008]
[1756972815974,1.37661693,110630.0,110620.0,0.00012774]
[1756972816182,1.37661693,110630.0,110620.0,0.00335774]
[1756972819109,1.15558059,110630.0,110620.0,0.00536774]
[1756972819371,1.30662059,110630.0,110620.0,0.00536774]
[1756972819636,1.15558059,110630.0,110620.0,0.00536774]
[1756972820147,0.18076648,110640.0,110630.0,0.18078278]
[1756972820368,0.33184648,110640.0,110630.0,0.27793877]
[1756972820784,0.89716429,110640.0,110630.0,0.27793877]
[1756972821383,0.33184648,110640.0,110630.0,0.27793877]
[1756972821594,0.89716429,110640.0,110630.0,0.27793877]
[1756972821810,0.89716429,110640.0,110630.0,0.09915599]
[1756972822372,0.89716429,110640.0,110630.0,0.00724]
[1756972822609,0.89716429,110640.0,110630.0,0.00924]
[1756972822869,1.23716429,110640.0,110630.0,0.00924]
[1756972823599,1.23716429,110640.0,110630.0,0.002]
[1756972824020,1.23716429,110640.0,110630.0,0.00523]
[1756972824254,1.32908028,110640.0,110630.0,0.00523]
[1756972824454,1.32908028,110640.0,110630.0,0.00323]
[1756972824659,1.23716429,110640.0,110630.0,0.00624]
[1756972825553,1.23712429,110640.0,110630.0,0.00524]
[1756972826031,1.23712429,110640.0,110630.0,0.00724]
[1756972827278,1.23712429,110640.0,110630.0,0.00924]
[1756972827693,1.30053901,110640.0,110630.0,0.00924]
[1756972829508,1.58369106,110640.0,110630.0,0.00924]
[1756972830665,1.58369106,110640.0,110630.0,0.00723]
[1756972830852,1.58369106,110640.0,110630.0,0.004]
[1756972832067,1.58369106,110640.0,110630.0,0.00723]
[1756972835617,1.58369106,110640.0,110630.0,0.004]
[1756972835816,2.00792599,110640.0,110630.0,0.004]
[1756972836099,2.03418731,110640.0,110630.0,0.004]
[1756972836933,2.03418731,110640.0,110630.0,0.002]
[1756972837083,0.52078278,110630.0,110620.0,0.00335774]
[1756972837284,1.52037264,110630.0,110620.0,0.00335774]
[1756972837493,1.54642886,110630.0,110620.0,0.00536774]
[1756972839713,1.54642886,110630.0,110620.0,0.00736774]
[1756972840142,1.54642886,110630.0,110620.0,0.00936774]
[1756972840789,1.54642886,110630.0,110620.0,0.00735774]
[1756972841000,1.54642886,110630.0,110620.0,0.00412774]
[1756972841416,1.54642886,110630.0,110620.0,0.00383667]
[1756972842105,1.54642886,110630.0,110620.0,0.00690667]
[1756972842314,1.54642886,110630.0,110620.0,0.00905667]
[1756972842739,0.67186278,110630.0,110620.0,0.00905667]
[1756972842948,1.09609771,110630.0,110620.0,0.00905667]
[1756972843180,1.52033264,110630.0,110620.0,0.00905667]
[1756972843595,1.36925264,110630.0,110620.0,0.00905667]
[1756972843805,1.52077264,110630.0,110620.0,0.00905667]
[1756972843956,1.61268863,110630.0,110620.0,0.00905667]
[1756972846940,1.52077264,110630.0,110620.0,0.00905667]
[1756972849153,1.36925264,110630.0,110620.0,0.00905667]
[1756972849371,1.52069264,110630.0,110620.0,0.00905667]
[1756972849956,1.52073264,110630.0,110620.0,0.00905667]
[1756972851793,0.94501771,110630.0,110620.0,0.00905667]
[1756972851931,1.52073264,110630.0,110620.0,0.00905667]
[1756972852157,1.59034871,110630.0,110620.0,0.00905667]
[1756972852930,1.43886871,110630.0,110620.0,0.00905667]
[1756972853140,1.59034871,110630.0,110620.0,0.00905667]
[1756972853494,0.74187885,110630.0,110620.0,0.00905667]
[1756972853728,1.59034871,110630.0,110620.0,0.00905667]
[1756972854228,0.74187885,110630.0,110620.0,0.00905667]
[1756972854455,1.09649771,110630.0,110620.0,0.00905667]
[1756972855413,1.52073264,110630.0,110620.0,0.00905667]
[1756972855819,0.67226278,110630.0,110620.0,0.00905667]
[1756972856058,1.09649771,110630.0,110620.0,0.00905667]
[1756972856191,1.1884137,110630.0,110620.0,0.00905667]
[1756972856599,1.61264863,110630.0,110620.0,0.00905667]
[1756972856796,0.76437877,110630.0,110620.0,0.00905667]
[1756972857020,1.61284863,110630.0,110620.0,0.00905667]
[1756972857234,1.68236863,110630.0,110620.0,0.00905667]
[1756972857425,1.53068863,110630.0,110620.0,0.00905667]
[1756972857628,1.68236863,110630.0,110620.0,0.00905667]
[1756972857874,1.53068863,110630.0,110620.0,0.00905667]
[1756972858054,1.2581337,110630.0,110620.0,0.00905667]
[1756972858638,1.1064537,110630.0,110620.0,0.00905667]
[1756972858846,1.2581337,110630.0,110620.0,0.00905667]
[1756972860160,1.1064537,110630.0,110620.0,0.00905667]
[1756972860380,1.2580937,110630.0,110620.0,0.00905667]
[1756972866085,1.68232863,110630.0,110620.0,0.00383667]
[1756972867896,0.71444805,110650.0,110630.0,0.180782]
[1756972868131,0.15438447,110640.0,110630.0,0.27269799]
[1756972868343,0.33515091,110640.0,110630.0,0.27269799]
[1756972868538,0.33232644,110640.0,110630.0,0.27269799]
[1756972868672,0.33232644,110640.0,110630.0,0.27791799]
[1756972868892,0.15156,110640.0,110630.0,0.27791799]
[1756972869090,0.15438447,110640.0,110630.0,0.28091799]
[1756972869544,0.15438447,110640.0,110630.0,0.28391799]
[1756972869870,0.06952,110650.0,110640.0,0.18076644]
[1756972870081,0.22112,110650.0,110640.0,0.27785243]
[1756972871913,0.22112,110650.0,110640.0,0.27885243]
[1756972872146,0.82610504,110650.0,110640.0,0.27885243]
[1756972872680,0.82610504,110650.0,110640.0,0.28085243]
[1756972876111,0.91802103,110650.0,110640.0,0.003]
[1756972876312,1.34225596,110650.0,110640.0,0.003]
[1756972876739,1.68225596,110650.0,110640.0,0.003]
[1756972877176,1.68225596,110650.0,110640.0,0.002]
[1756972877540,1.68225596,110650.0,110640.0,0.001]
[1756972877944,1.68225596,110650.0,110640.0,0.002]
[1756972878346,0.18076644,110640.0,110630.0,0.00316]
[1756972878544,1.1807563,110640.0,110630.0,0.09507599]
[1756972878757,1.1807563,110640.0,110630.0,0.09708599]
[1756972878965,1.1807563,110640.0,110630.0,0.09507599]
[1756972879164,0.18079244,110630.0,110610.0,0.18985223]
[1756972879464,0.18079244,110630.0,110620.0,0.09507599]
[1756972879633,0.33231244,110630.0,110620.0,0.09507599]
[1756972879845,0.67231244,110630.0,110620.0,0.09507599]
[1756972880273,0.67231244,110630.0,110620.0,0.00316]
[1756972880702,1.09654737,110630.0,110620.0,0.00517]
[1756972881313,1.09654737,110630.0,110620.0,0.00717]
[1756972882225,1.09654737,110630.0,110620.0,0.00917]
[1756972886226,1.16606737,110630.0,110620.0,0.00917]
[1756972886593,1.16594737,110630.0,110620.0,0.00917]
[1756972887201,1.16594737,110630.0,110620.0,0.00716]
[1756972889619,1.30741158,110630.0,110620.0,0.00716]
[1756972891224,1.30737158,110630.0,110620.0,0.00716]
[1756972891426,1.4252241,110630.0,110620.0,0.004]
[1756972892189,1.39928757,110630.0,110620.0,0.004]
[1756972893784,1.42022639,110630.0,110620.0,0.004]
[1756972893993,1.44616292,110630.0,110620.0,0.004]
[1756972894603,1.46992577,110630.0,110620.0,0.004]
[1756972895188,1.46992577,110630.0,110620.0,0.002]
[1756972895512,1.46992577,110630.0,110620.0,0.003]
[1756972895973,1.56184176,110630.0,110620.0,0.002]
[1756972896461,1.53803891,110630.0,110620.0,0.002]
[1756972896820,0.18079913,110620.0,110610.0,0.00363136]
[1756972897052,0.89781827,110620.0,110610.0,0.00363136]
[1756972897458,0.98973426,110620.0,110610.0,0.00363136]
[1756972898038,0.98973426,110620.0,110610.0,0.00663136]
[1756972898441,0.98973426,110620.0,110610.0,0.00963136]
[1756972898630,0.89781827,110620.0,110610.0,0.00963136]
[1756972900084,0.91816486,110620.0,110610.0,0.00963136]
[1756972901267,0.76684486,110620.0,110610.0,0.00963136]
[1756972901474,0.91812486,110620.0,110610.0,0.00963136]
[1756972901889,0.76684486,110620.0,110610.0,0.00963136]
[1756972902104,0.35242572,110620.0,110610.0,0.01179136]
[1756972902423,0.69238572,110620.0,110610.0,0.21186914]
[1756972902868,0.69242572,110620.0,110610.0,0.28452282]
[1756972903072,0.69242572,110620.0,110610.0,0.10370735]
[1756972903445,0.54114572,110620.0,110610.0,0.28452282]
[1756972903706,0.69242572,110620.0,110610.0,0.28452282]
[1756972905530,0.54114572,110620.0,110610.0,0.28452282]
[1756972905732,0.54114572,110620.0,110610.0,0.10370735]
[1756972905733,0.69246572,110620.0,110610.0,0.10370735]
[1756972909624,0.54114572,110620.0,110610.0,0.10370735]
[1756972909828,0.69238572,110620.0,110610.0,0.10370735]
[1756972910552,0.54114572,110620.0,110610.0,0.28452282]
[1756972910744,0.36034659,110620.0,110610.0,0.28452282]
[1756972910926,0.51194659,110620.0,110610.0,0.28452282]
[1756972911327,0.69274572,110620.0,110610.0,0.28452282]
[1756972913330,0.51190659,110620.0,110610.0,0.28452282]
[1756972913546,0.69270572,110620.0,110610.0,0.28452282]
[1756972916612,0.69274572,110620.0,110610.0,0.28452282]
[1756972924408,1.25844486,110620.0,110610.0,0.09838735]
[1756972924654,1.25844486,110620.0,110610.0,0.10149735]
[1756972926028,1.25844486,110620.0,110610.0,0.09838735]
[1756972926378,1.25844486,110620.0,110610.0,0.10149735]
[1756972927117,1.25844486,110620.0,110610.0,0.09838735]
[1756972927339,1.32956603,110620.0,110610.0,0.09838735]
[1756972928424,1.25844486,110620.0,110610.0,0.09838735]
[1756972929764,1.25844486,110620.0,110610.0,0.10133735]
[1756972930648,1.25844486,110620.0,110610.0,0.09838735]
[1756972934046,1.25844486,110620.0,110610.0,0.00647136]
[1756972936143,1.25824486,110620.0,110610.0,0.00647136]
[1756972936345,1.35016085,110620.0,110610.0,0.00647136]
[1756972940434,1.25820486,110620.0,110610.0,0.00647136]
[1756972942634,1.10684486,110620.0,110610.0,0.00647136]
[1756972942845,1.25816486,110620.0,110610.0,0.00647136]
[1756972943049,1.25816486,110620.0,110610.0,0.00942136]
[1756972943645,0.69246572,110620.0,110610.0,0.00942136]
[1756972944169,1.28726586,110620.0,110610.0,0.00942136]
[1756972948872,1.10684486,110620.0,110610.0,0.19023683]
[1756972949199,1.25808486,110620.0,110610.0,0.19023683]
[1756972949424,0.36034659,110620.0,110610.0,0.19234683]
[1756972949616,0.36034659,110620.0,110610.0,0.28426282]
[1756972949751,0.51162659,110620.0,110610.0,0.28426282]
[1756972950395,0.54114572,110620.0,110610.0,0.28426282]
[1756972950621,0.51166659,110620.0,110610.0,0.28426282]
[1756972951573,0.93590668,110620.0,110610.0,0.28426282]
[1756972952402,0.93586668,110620.0,110610.0,0.28426282]
[1756972953208,1.11666581,110620.0,110610.0,0.28426282]
[1756972955725,0.78458668,110620.0,110610.0,0.28426282]
[1756972955926,1.11662581,110620.0,110610.0,0.28426282]
[1756972956661,0.51158659,110620.0,110610.0,0.28426282]
[1756972956833,0.93582668,110620.0,110610.0,0.28426282]
[1756972958196,0.96538581,110620.0,110610.0,0.28426282]
[1756972958401,0.78458668,110620.0,110610.0,0.28426282]
[1756972958626,1.11674581,110620.0,110610.0,0.28426282]
[1756972962047,0.69250572,110620.0,110610.0,0.28426282]
[1756972962552,0.51170659,110620.0,110610.0,0.28426282]
[1756972962728,0.93594668,110620.0,110610.0,0.28426282]
[1756972962946,0.36034659,110620.0,110610.0,0.28426282]
[1756972963146,0.51166659,110620.0,110610.0,0.28426282]
[1756972963671,0.17162659,110620.0,110610.0,0.70850291]
[1756972964121,0.17166659,110620.0,110610.0,0.70850291]
[1756972969660,0.40952,110630.0,110620.0,0.18079913]
[1756972969867,0.56076,110630.0,110620.0,0.27778512]
[1756972971186,0.22076,110630.0,110620.0,0.27978512]
[1756972971957,0.23732666,110630.0,110620.0,0.27978512]
[1756972972202,0.08608666,110630.0,110620.0,0.28178512]
[1756972972409,0.16788666,110630.0,110620.0,0.70602521]
[1756972973489,0.16788666,110630.0,110620.0,0.70402521]
[1756972973913,0.16788666,110630.0,110620.0,0.70602521]
[1756972974139,0.16788666,110630.0,110620.0,0.70402521]
[1756972974349,0.16788666,110630.0,110620.0,0.70602521]
[1756972975320,0.16788666,110630.0,110620.0,0.70402521]
[1756972975695,0.16788666,110630.0,110620.0,0.70702521]
[1756972980710,0.16780666,110630.0,110620.0,0.70702521]
[1756972981627,0.16780666,110630.0,110620.0,0.85826521]
[1756972982451,0.16780666,110630.0,110620.0,1.2825053]
[1756972983163,0.01656666,110630.0,110620.0,0.70702521]
[1756972983373,0.01656666,110630.0,110620.0,0.85822521]
[1756972983530,0.15402447,110640.0,110630.0,0.18078278]
[1756972983733,0.15402447,110640.0,110630.0,0.27468877]
[1756972983935,0.15402447,110640.0,110630.0,0.27776877]
[1756972984563,0.15398447,110640.0,110630.0,0.27776877]
[1756972984942,0.15398447,110640.0,110630.0,0.28076877]
[1756972985323,0.00282447,110640.0,110630.0,0.28076877]
[1756972985540,0.15398447,110640.0,110630.0,0.28076877]
[1756972985741,0.17066276,110640.0,110630.0,0.28076877]
[1756972986321,0.01950276,110640.0,110630.0,0.28076877]
[1756972986527,0.17066276,110640.0,110630.0,0.70500886]
[1756972986750,0.17066276,110640.0,110630.0,0.28076877]
[1756972986956,0.17066276,110640.0,110630.0,0.70500886]
[1756972987139,0.17066276,110640.0,110630.0,0.28076877]
[1756972995011,0.01950276,110640.0,110630.0,0.28076877]
[1756972995216,0.16775829,110640.0,110630.0,0.28076877]
[1756972996001,0.17058276,110640.0,110630.0,0.28076877]
[1756973002750,0.59482285,110640.0,110630.0,0.28076877]
[1756973002930,0.59199838,110640.0,110630.0,0.28076877]
[1756973005942,0.44091838,110640.0,110630.0,0.28076877]
[1756973006162,0.59195838,110640.0,110630.0,0.28076877]
[1756973006545,0.16771829,110640.0,110630.0,0.28076877]
[1756973006755,0.17054276,110640.0,110630.0,0.28076877]
[1756973007835,0.01950276,110640.0,110630.0,0.28076877]
[1756973008040,0.17054276,110640.0,110630.0,0.70500886]
[1756973008827,0.17048776,110640.0,110630.0,0.70500886]
[1756973009668,0.01662329,110640.0,110630.0,0.70500886]
[1756973009871,0.25924073,110670.0,110640.0,0.18075228]
[1756973010125,0.57552009,110660.0,110650.0,0.27578149]
[1756973010245,0.15128,110660.0,110650.0,0.27793149]
[1756973010446,0.591789,110660.0,110650.0,0.27793149]
[1756973011307,0.59193022,110660.0,110650.0,0.27793149]
[1756973011519,0.01641013,110660.0,110650.0,0.27793149]
[1756973011674,0.16769013,110660.0,110650.0,0.27793149]
[1756973011888,0.16769013,110660.0,110650.0,0.27893149]
[1756973012066,0.17051409,110660.0,110650.0,0.27893149]
[1756973013363,0.16769013,110660.0,110650.0,0.27893149]
[1756973013790,0.16769013,110660.0,110650.0,0.27793149]
[1756973013986,0.16769013,110660.0,110650.0,0.27993149]
[1756973014361,0.16769013,110660.0,110650.0,0.28293149]
[1756973015150,0.16765013,110660.0,110650.0,0.28293149]
[1756973019165,0.3483839,110660.0,110650.0,0.28293149]
[1756973023547,0.16749013,110660.0,110650.0,0.28293149]
[1756973029764,0.01641013,110660.0,110650.0,0.28293149]
[1756973029964,0.16741013,110660.0,110650.0,0.28293149]
[1756973030364,0.01641013,110660.0,110650.0,0.28293149]
[1756973030785,0.16737013,110660.0,110650.0,0.28293149]
[1756973033169,0.16765013,110660.0,110650.0,0.28293149]
[1756973036269,0.01641013,110660.0,110650.0,0.28293149]
[1756973036448,0.16761013,110660.0,110650.0,0.28293149]
[1756973038202,0.01641013,110660.0,110650.0,0.28293149]
[1756973045376,0.00014122,110660.0,110650.0,0.28293149]
[1756973045582,0.49321827,110680.0,110670.0,0.18071744]
[1756973045780,0.49039482,110680.0,110670.0,0.27263343]
[1756973046199,0.49039482,110680.0,110670.0,0.27794343]
[1756973047014,0.33935482,110680.0,110670.0,0.27794343]
[1756973047154,0.49087482,110680.0,110670.0,0.27794343]
[1756973047543,0.33935482,110680.0,110670.0,0.27794343]
[1756973047752,0.49087482,110680.0,110670.0,0.27894343]
[1756973047887,1.05617036,110680.0,110670.0,0.27781343]
[1756973048106,1.23687148,110680.0,110670.0,0.27463343]
[1756973048301,1.25169395,110680.0,110670.0,0.27463343]
[1756973049569,0.35417729,110680.0,110670.0,0.27974343]
[1756973049795,0.35417729,110680.0,110670.0,0.27759343]
[1756973050008,1.10017395,110680.0,110670.0,0.27759343]
[1756973050221,0.53487841,110680.0,110670.0,0.27974343]
[1756973050419,1.10017395,110680.0,110670.0,0.27974343]
[1756973050589,0.91947283,110680.0,110670.0,0.27974343]
[1756973051000,0.16658247,110680.0,110670.0,0.27974343]
[1756973051433,0.01482247,110680.0,110670.0,0.27974343]
[1756973051736,1.05705554,110690.0,110680.0,0.18070112]
[1756973052043,1.05705554,110690.0,110680.0,0.27557711]
[1756973052463,1.23774033,110690.0,110680.0,0.27772711]
[1756973052763,1.23774033,110690.0,110680.0,0.27557711]
[1756973052925,1.05705554,110690.0,110680.0,0.27772711]
[1756973053321,0.90529554,110690.0,110680.0,0.27772711]
[1756973053551,0.49172,110690.0,110680.0,0.27772711]
[1756973054488,1.05701554,110690.0,110680.0,0.27772711]
[1756973054666,1.05701554,110690.0,110680.0,0.27972711]
[1756973055010,0.52068479,110690.0,110680.0,0.28172711]
[1756973055209,1.23770033,110690.0,110680.0,0.28172711]
[1756973055618,0.67240479,110690.0,110680.0,0.28172711]
[1756973056166,0.49172,110690.0,110680.0,0.28172711]
[1756973056569,0.50625725,110690.0,110680.0,0.28172711]
[1756973059110,0.01453725,110690.0,110680.0,0.28172711]
[1756973059353,1.19498701,110700.0,110680.0,0.28172711]
[1756973059535,1.53512831,110700.0,110690.0,0.27260078]
[1756973059676,1.50593684,110700.0,110690.0,0.27260078]
[1756973060422,0.71723684,110700.0,110690.0,0.27260078]
[1756973060646,0.7324099,110700.0,110690.0,0.27260078]
[1756973060999,0.16711436,110700.0,110690.0,0.27771078]
[1756973061265,0.1699373,110700.0,110690.0,0.27871078]
[1756973061564,0.35060577,110700.0,110690.0,0.27656078]
[1756973061713,0.34778283,110700.0,110690.0,0.27656078]
[1756973062121,0.34778283,110700.0,110690.0,0.27756078]
[1756973062820,0.16711436,110700.0,110690.0,0.27756078]
[1756973063023,0.91590131,110700.0,110690.0,0.27756078]
[1756973063248,0.91307837,110700.0,110690.0,0.27756078]
[1756973064237,0.34778283,110700.0,110690.0,0.27756078]
[1756973064434,0.91307837,110700.0,110690.0,0.27756078]
[1756973064860,0.91307837,110700.0,110690.0,0.27460078]
[1756973065258,0.76147837,110700.0,110690.0,0.27460078]
[1756973065513,0.91299837,110700.0,110690.0,0.27971078]
[1756973066064,0.34770283,110700.0,110690.0,0.27971078]
[1756973069461,0.01551436,110700.0,110690.0,0.27971078]
[1756973069677,0.7322099,110700.0,110690.0,0.27971078]
[1756973070910,0.5808099,110700.0,110690.0,0.27971078]
[1756973071107,0.7334899,110700.0,110690.0,0.27971078]
[1756973071317,0.5808099,110700.0,110690.0,0.27971078]
[1756973071533,0.7334899,110700.0,110690.0,0.27971078]
[1756973071917,0.01551436,110700.0,110690.0,0.27971078]
[1756973072095,0.7334899,110700.0,110690.0,0.27971078]
[1756973072507,0.16819436,110700.0,110690.0,0.27971078]
[1756973072729,0.7335699,110700.0,110690.0,0.27971078]
[1756973073133,0.5808099,110700.0,110690.0,0.27971078]
[1756973073353,0.7335699,110700.0,110690.0,0.27971078]
[1756973073557,1.0156256,110700.0,110690.0,0.27971078]
[1756973073835,0.16827436,110700.0,110690.0,0.27971078]
[1756973074049,1.0156256,110700.0,110690.0,0.27971078]
[1756973075926,1.0155456,110700.0,110690.0,0.27971078]
[1756973078153,0.16819436,110700.0,110690.0,0.27971078]
[1756973078370,1.0155456,110700.0,110690.0,0.27971078]
[1756973079168,0.01551436,110700.0,110690.0,0.27971078]
[1756973079413,1.0155456,110700.0,110690.0,0.27971078]
[1756973079588,1.0157056,110700.0,110690.0,0.27971078]
[1756973079794,0.8628656,110700.0,110690.0,0.27971078]
[1756973080018,1.0157056,110700.0,110690.0,0.27971078]
[1756973080417,0.01551436,110700.0,110690.0,0.27971078]
[1756973080578,0.59202998,110700.0,110690.0,0.27971078]
[1756973080774,0.01551436,110700.0,110690.0,0.27971078]
[1756973081103,0.0003413,110700.0,110690.0,0.27971078]
[1756973082114,0.0152345,110700.0,110690.0,0.27971078]
[1756973082706,0.0003413,110700.0,110690.0,0.7033864]
[1756973083367,0.0003413,110700.0,110690.0,0.27871078]
[1756973083800,0.0003413,110700.0,110690.0,0.7023864]
[1756973084019,0.0003413,110700.0,110690.0,0.27871078]